bitfinex/quotes_SOLUSD_20251212
["timestamp","ask_amount","ask_price","bid_price","bid_amount"]
[1765573149459,7.59186152,131.72,131.7,13.7470912]
[1765573149658,27.24151533,131.72,131.69,0.7]
[1765573149866,26.57151533,131.72,131.69,0.7]
[1765573150178,26.57151533,131.72,131.7,0.7]
[1765573150399,7.59186152,131.72,131.7,0.7]
[1765573151500,7.59186152,131.72,131.65,5.45162993]
[1765573151501,8.80994492,131.7,131.65,5.45162993]
[1765573151676,8.80994492,131.7,131.65,6.15162993]
[1765573151875,9.47994492,131.7,131.66,0.7]
[1765573152281,7.59474443,131.67,131.66,0.7]
[1765573152686,7.59474443,131.67,131.65,13.2470912]
[1765573152876,7.59474443,131.67,131.66,0.7]
[1765573153587,8.26474443,131.67,131.65,0.2]
[1765573153907,23.05157485,131.66,131.59,13.1470912]
[1765573154084,23.05157485,131.66,131.56,0.1]
[1765573154085,8.80994492,131.59,131.56,0.1]
[1765573154276,24.72930657,131.59,131.56,0.8]
[1765573154622,24.72930657,131.59,131.56,0.1]
[1765573154796,30.6009365,131.59,131.56,0.1]
[1765573154976,29.9809365,131.59,131.56,0.1]
[1765573155306,24.72930657,131.59,131.56,5.35162993]
[1765573155483,24.72930657,131.59,131.56,0.1]
[1765573155804,24.72930657,131.59,131.56,0.8]
[1765573157306,30.60765077,131.59,131.56,0.1]
[1765573157610,25.34930657,131.59,131.56,0.1]
[1765573157982,25.34930657,131.59,131.56,0.8]
[1765573157983,24.72930657,131.59,131.56,0.8]
[1765573158175,19.61681986,131.61,131.56,5.3583442]
[1765573158383,8.32,131.6,131.58,0.8]
[1765573158681,0.0908,131.59,131.58,6.0583442]
[1765573161181,0.0908,131.59,131.58,6.0683442]
[1765573161788,8.80994492,131.66,131.61,13.0470912]
[1765573162006,8.80994492,131.66,131.64,5.2583442]
[1765573162503,7.59589821,131.65,131.64,5.2583442]
[1765573162906,8.80994492,131.66,131.64,5.2583442]
[1765573163095,8.80994492,131.66,131.64,5.9683442]
[1765573163296,16.40529762,131.66,131.64,5.9683442]
[1765573163707,104.3,131.71,131.65,5.9683442]
[1765573163921,104.3,131.71,131.68,12.53291529]
[1765573163922,8.80994492,131.69,131.68,12.53291529]
[1765573164294,8.80994492,131.69,131.68,13.24291529]
[1765573164502,16.40353592,131.69,131.68,13.24291529]
[1765573164809,19.65985181,131.72,131.68,13.24291529]
[1765573164988,16.40238285,131.71,131.68,13.24291529]
[1765573165188,16.40238285,131.71,131.68,12.53291529]
[1765573165390,15.91206879,131.72,131.69,13.24291529]
[1765573165786,24.72201371,131.72,131.71,12.53291529]
[1765573165991,15.91206879,131.72,131.7,12.53291529]
[1765573166517,16.39950168,131.76,131.71,13.24291529]
[1765573166721,35.3733936,131.76,131.71,0.71]
[1765573166905,8.80994492,131.74,131.72,12.53291529]
[1765573167102,8.80994492,131.74,131.69,13.7570912]
[1765573167333,8.80994492,131.75,131.73,12.53291529]
[1765573167622,0.68,131.78,131.71,20.92370444]
[1765573167792,0.68,131.78,131.71,13.33141434]
[1765573167793,21.34286021,131.77,131.71,13.33141434]
[1765573168112,8.80994492,131.74,131.7,13.24291529]
[1765573168323,17.12994492,131.74,131.71,13.24291529]
[1765573168490,24.72084189,131.74,131.71,13.24291529]
[1765573168914,24.72084189,131.74,131.71,0.71]
[1765573170422,8.80994492,131.72,131.68,26.29000649]
[1765573170617,16.40211272,131.72,131.68,26.29000649]
[1765573170823,16.40211272,131.72,131.69,0.71]
[1765573170992,17.08211272,131.72,131.68,13.0470912]
[1765573171192,8.80994492,131.7,131.67,0.71]
[1765573171598,8.80994492,131.7,131.67,13.7570912]
[1765573172195,8.80994492,131.7,131.67,26.29000649]
[1765573172796,16.40333308,131.7,131.67,13.7570912]
[1765573174034,16.40333308,131.7,131.67,13.0470912]
[1765573174212,16.40333308,131.7,131.6,40.06032879]
[1765573174213,21.34286021,131.68,131.63,0.71]
[1765573174412,8.80994492,131.66,131.59,8.32]
[1765573174610,8.80994492,131.66,131.61,12.53291529]
[1765573174819,8.80994492,131.64,131.61,13.24291529]
[1765573175842,17.12994492,131.64,131.61,13.24291529]
[1765573176246,29.66286021,131.64,131.58,9.13]
[1765573176536,30.34286021,131.64,131.59,13.24291529]
[1765573176849,30.34286021,131.64,131.59,26.29000649]
[1765573176850,7.59705234,131.63,131.59,26.29000649]
[1765573177140,7.59705234,131.63,131.6,0.71]
[1765573177354,8.80994492,131.64,131.6,0.99432314]
[1765573177641,7.59644622,131.65,131.62,12.53291529]
[1765573177945,7.59644622,131.65,131.62,7.71871861]
[1765573178310,8.27644622,131.65,131.6,0.99432314]
[1765573178511,7.59644622,131.65,131.61,8.42871861]
[1765573178738,17.20866353,131.64,131.59,13.0470912]
[1765573179026,17.20866353,131.64,131.59,21.47580981]
[1765573179226,8.80994492,131.64,131.6,8.42871861]
[1765573179431,8.80994492,131.64,131.61,7.71871861]
[1765573179633,8.80994492,131.64,131.61,8.42871861]
[1765573179829,8.80994492,131.64,131.61,0.71]
[1765573180142,8.80994492,131.64,131.59,13.0470912]
[1765573180143,9.48994492,131.64,131.6,7.71871861]
[1765573180339,8.80994492,131.64,131.61,7.71871861]
[1765573180543,16.40644376,131.64,131.61,8.42871861]
[1765573180927,8.80994492,131.64,131.63,7.71871861]
[1765573181120,15.91609085,131.65,131.63,7.71871861]
[1765573181520,8.80994492,131.64,131.6,0.71]
[1765573181848,8.80994492,131.64,131.6,8.42871861]
[1765573182054,9.48994492,131.64,131.6,8.42871861]
[1765573182225,9.48994492,131.64,131.59,13.0470912]
[1765573182226,8.80994492,131.64,131.61,7.71871861]
[1765573182415,8.80994492,131.64,131.63,7.71871861]
[1765573182416,16.40642015,131.64,131.63,7.71871861]
[1765573182613,24.72642015,131.64,131.63,7.71871861]
[1765573182813,24.72642015,131.64,131.62,8.42871861]
[1765573183214,8.80994492,131.63,131.61,7.71871861]
[1765573183433,15.91656783,131.64,131.6,0.71]
[1765573183643,15.91656783,131.64,131.62,7.71871861]
[1765573184538,8.80994492,131.63,131.59,13.7570912]
[1765573184734,8.80994492,131.63,131.6,8.42871861]
[1765573185442,9.48994492,131.63,131.59,13.0470912]
[1765573185621,9.48994492,131.63,131.59,21.47580981]
[1765573185821,9.48994492,131.63,131.59,13.7570912]
[1765573186030,9.48994492,131.63,131.59,8.42871861]
[1765573186230,8.80994492,131.63,131.58,0.1]
[1765573186452,7.59878419,131.6,131.58,0.1]
[1765573186635,15.91878419,131.6,131.58,0.1]
[1765573186835,8.32,131.6,131.59,7.71871861]
[1765573187332,8.32,131.6,131.59,8.42871861]
[1765573188225,7.597746,131.62,131.59,8.42871861]
[1765573188429,8.32,131.61,131.6,7.71871861]
[1765573188924,18.99031046,131.65,131.6,8.42871861]
[1765573189130,17.12994492,131.64,131.62,7.71871861]
[1765573189431,24.72645266,131.64,131.62,7.71871861]
[1765573190117,24.72645266,131.64,131.61,8.42871861]
[1765573190536,7.59762953,131.62,131.58,13.1470912]
[1765573190746,8.32,131.61,131.6,7.71871861]
[1765573191926,8.32,131.61,131.6,8.38871861]
[1765573192249,7.59747795,131.63,131.6,0.67]
[1765573192428,24.7265131,131.64,131.62,7.71871861]
[1765573192633,24.7265131,131.64,131.61,8.38871861]
[1765573192944,8.32,131.64,131.63,7.71871861]
[1765573193125,17.83994492,131.64,131.59,0.95432314]
[1765573193324,17.12994492,131.64,131.61,7.71871861]
[1765573193747,7.59705234,131.63,131.61,7.71871861]
[1765573193933,7.59705234,131.63,131.61,8.38871861]
[1765573194125,8.32,131.64,131.62,8.38871861]
[1765573194445,8.32,131.64,131.63,7.71871861]
[1765573194748,8.32,131.64,131.63,8.38871861]
[1765573194924,7.59600736,131.65,131.63,8.38871861]
[1765573195125,112.62,131.66,131.64,8.38871861]
[1765573195325,8.80994492,131.67,131.62,0.95432314]
[1765573195533,16.40452279,131.68,131.66,7.71871861]
[1765573195735,17.11452279,131.68,131.64,13.0470912]
[1765573195935,0.71,131.67,131.64,8.38871861]
[1765573196144,8.32,131.66,131.64,8.38871861]
[1765573196360,17.12994492,131.66,131.65,7.71871861]
[1765573196549,17.12994492,131.66,131.64,7.71630863]
[1765573197054,17.12994492,131.66,131.62,13.7170912]
[1765573197350,8.32,131.66,131.65,7.71630863]
[1765573197821,15.91532128,131.66,131.63,0.67]
[1765573198017,8.80994492,131.65,131.6,0.28432314]
[1765573198258,9.03,131.64,131.61,20.76339983]
[1765573198457,8.32,131.64,131.61,13.0470912]
[1765573198751,8.32,131.64,131.62,7.71630863]
[1765573198921,8.32,131.64,131.59,13.0470912]
[1765573198922,8.80994492,131.63,131.59,13.0470912]
[1765573199121,7.59532128,131.66,131.62,7.71630863]
[1765573199433,8.80994492,131.67,131.65,7.71630863]
[1765573199635,8.80994492,131.67,131.66,7.71630863]
[1765573199830,8.80994492,131.67,131.63,0.67]
[1765573199831,7.59564584,131.66,131.63,0.67]
[1765573200027,17.12994492,131.65,131.62,13.0470912]
[1765573200242,17.12994492,131.65,131.64,7.71630863]
[1765573200525,8.80994492,131.65,131.62,13.0470912]
[1765573200771,8.32,131.64,131.62,7.71630863]
[1765573201051,8.80994492,131.63,131.62,7.71630863]
[1765573201433,8.80994492,131.63,131.61,7.71630863]
[1765573201852,16.40752538,131.63,131.61,7.71630863]
[1765573202018,16.40752538,131.63,131.59,13.7170912]
[1765573202229,16.40752538,131.63,131.62,7.71630863]
[1765573202450,8.80994492,131.61,131.59,7.71630863]
[1765573202754,8.32,131.6,131.59,7.59936165]
[1765573202923,8.32,131.6,131.59,7.88368479]
[1765573203120,16.40646011,131.64,131.6,0.14216157]
[1765573203445,8.32,131.64,131.62,13.0470912]
[1765573203750,8.32,131.64,131.62,13.7070912]
[1765573203941,8.32,131.64,131.63,8.37630863]
[1765573204923,8.80994492,131.66,131.63,8.37630863]
[1765573205124,8.32,131.65,131.64,8.37630863]
[1765573205324,8.32,131.65,131.64,0.66]
[1765573205525,8.32,131.65,131.64,8.37630863]
[1765573205759,8.32,131.65,131.64,0.66]
[1765573205927,8.32,131.65,131.64,8.37630863]
[1765573206124,15.91589821,131.65,131.62,20.76339983]
[1765573206321,15.91589821,131.65,131.62,21.42339983]
[1765573206938,15.91589821,131.65,131.63,7.71630863]
[1765573207146,15.91589821,131.65,131.62,13.7070912]
[1765573207567,15.91589821,131.65,131.63,7.71630863]
[1765573207733,15.91589821,131.65,131.62,21.42339983]
[1765573208634,15.91589821,131.65,131.61,7.71630863]
[1765573208635,16.61589821,131.65,131.61,7.71630863]
[1765573208854,9.50994492,131.64,131.59,7.71630863]
[1765573209052,17.22625355,131.64,131.59,7.71630863]
[1765573209358,0.7,131.63,131.59,8.37630863]
[1765573209531,8.32,131.62,131.58,7.81630863]
[1765573209736,8.32,131.62,131.58,0.1]
[1765573209737,16.52625355,131.61,131.58,0.1]
[1765573209938,8.80994492,131.59,131.58,0.1]
[1765573210263,32.4456152,131.59,131.58,0.1]
[1765573210427,44.4277107,131.59,131.56,0.1]
[1765573210631,0.7,131.58,131.56,0.1]
[1765573210948,43.7277107,131.59,131.56,0.1]
[1765573211154,44.4277107,131.59,131.56,0.1]
[1765573211538,52.14401933,131.59,131.56,0.1]
[1765573212341,44.4277107,131.59,131.56,0.1]
[1765573212538,43.7277107,131.59,131.56,0.1]
[1765573212739,0.7,131.58,131.56,0.1]
[1765573213365,43.7277107,131.59,131.56,0.1]
[1765573213656,44.4277107,131.59,131.56,0.1]
[1765573214633,52.14401933,131.59,131.56,0.1]
[1765573215462,0.7,131.58,131.56,0.1]
[1765573215661,8.32,131.57,131.56,0.1]
[1765573217633,15.92051683,131.57,131.56,0.1]
[1765573219172,24.73046175,131.57,131.56,0.1]
[1765573219464,15.92051683,131.57,131.55,0.2]
[1765573219967,16.62051683,131.57,131.55,0.2]
[1765573220863,15.92051683,131.57,131.55,0.2]
[1765573226981,16.63051683,131.57,131.55,0.2]
[1765573227149,12.88584838,131.56,131.53,1e-08]
[1765573227468,8.32,131.55,131.53,1e-08]
[1765573228174,8.32,131.54,131.53,3.36590347]
[1765573228549,8.32,131.54,131.53,1e-08]
[1765573229583,15.92225026,131.54,131.53,1e-08]
[1765573229776,7.60225026,131.54,131.53,1e-08]
[1765573229950,15.92225026,131.54,131.53,1e-08]
[1765573230552,15.92225026,131.54,131.53,4.08590347]
[1765573230972,7.60225026,131.54,131.53,3.36590347]
[1765573231283,15.92225026,131.54,131.53,4.08590347]
[1765573231480,15.92225026,131.54,131.53,1e-08]
[1765573232067,24.73219518,131.54,131.53,1e-08]
[1765573232257,25.44219518,131.54,131.53,1e-08]
[1765573232661,24.73219518,131.54,131.53,1e-08]
[1765573233085,15.92225026,131.54,131.53,3.36590347]
[1765573233390,15.92225026,131.54,131.53,4.08590347]
[1765573233570,15.92225026,131.54,131.53,3.36590347]
[1765573233772,15.92225026,131.54,131.53,1e-08]
[1765573233988,15.92225026,131.54,131.53,3.36658636]
[1765573234686,15.92225026,131.54,131.53,1e-08]
[1765573234988,7.60225026,131.54,131.53,4.08658636]
[1765573235191,7.60225026,131.54,131.53,17.13367756]
[1765573236285,7.60225026,131.54,131.53,16.41367756]
[1765573236495,7.60225026,131.54,131.53,13.76709121]
[1765573237894,7.60225026,131.54,131.53,1e-08]
[1765573238186,16.41219518,131.54,131.53,1e-08]
[1765573238389,22.38404731,131.54,131.53,1e-08]
[1765573238589,17.12219518,131.54,131.53,1e-08]
[1765573238813,22.38404731,131.54,131.53,1e-08]
[1765573241578,17.12219518,131.54,131.53,1e-08]
[1765573241897,30.70404731,131.54,131.53,1e-08]
[1765573246402,22.38404731,131.54,131.53,1e-08]
[1765573246579,29.99404731,131.54,131.53,1e-08]
[1765573247400,30.70404731,131.54,131.53,1e-08]
[1765573254878,53.49404731,131.54,131.53,1e-08]
[1765573258288,136.85426806,131.53,131.51,1e-08]
[1765573258489,149.48179705,131.52,131.51,1e-08]
[1765573258815,150.15179705,131.52,131.51,1e-08]
[1765573260323,136.56994492,131.51,131.48,0.1]
[1765573260484,14.07179705,131.49,131.47,0.1]
[1765573260690,13.58185213,131.48,131.47,0.1]
[1765573261205,9.47994492,131.47,131.46,1e-08]
[1765573261416,8.80994492,131.47,131.46,0.69000001]
[1765573261709,8.80994492,131.47,131.46,5.45185214]
[1765573261710,8.32,131.47,131.46,5.45185214]
[1765573261924,26.61192213,131.52,131.46,26.10569311]
[1765573262210,17.12994492,131.51,131.48,5.26185213]
[1765573262437,24.73445801,131.51,131.48,5.26185213]
[1765573263785,0.28432314,131.57,131.5,5.26185213]
[1765573263786,5.93185213,131.57,131.5,5.26185213]
[1765573263989,8.34,131.56,131.51,5.26185213]
[1765573264203,8.80994492,131.55,131.51,5.95185213]
[1765573264410,15.94225026,131.54,131.52,0.69]
[1765573265309,8.34,131.54,131.52,5.95185213]
[1765573265612,14.74179705,131.53,131.49,0.69]
[1765573265908,8.80994492,131.51,131.5,0.69]
[1765573266586,16.4139294,131.51,131.5,0.69]
[1765573268800,16.4139294,131.51,131.48,13.0470912]
[1765573268801,16.4139294,131.51,131.48,13.7370912]
[1765573269000,8.32,131.5,131.49,0.69]
[1765573270213,7.60304832,131.53,131.49,13.84131634]
[1765573270422,8.32,131.52,131.49,13.84193928]
[1765573270716,8.32,131.52,131.5,0.69]
[1765573271120,15.92364671,131.52,131.5,0.69]
[1765573272516,7.60306333,131.53,131.5,5.95247507]
[1765573272813,8.32,131.52,131.5,5.95247507]
[1765573273005,8.32,131.52,131.51,0.69]
[1765573274412,7.60306333,131.53,131.51,0.69]
[1765573274719,8.32,131.52,131.51,0.69]
[1765573276224,15.92340632,131.52,131.51,0.69]
[1765573276723,8.32,131.52,131.51,5.95247507]
[1765573277295,8.32,131.52,131.51,0.69]
[1765573277697,7.60109455,131.56,131.51,26.60347844]
[1765573277897,8.32,131.55,131.52,5.26247507]
[1765573278101,8.32,131.55,131.52,5.95247507]
[1765573278301,8.32,131.55,131.53,0.69]
[1765573278609,15.92176521,131.55,131.53,0.69]
[1765573282317,8.32,131.55,131.53,5.95247507]
[1765573282803,8.32,131.55,131.54,0.72]
[1765573283210,15.92167236,131.55,131.54,0.72]
[1765573283626,24.73161728,131.55,131.51,13.0470912]
[1765573283928,0.72,131.54,131.51,13.7670912]
[1765573284105,8.32,131.53,131.51,13.7670912]
[1765573284502,8.32,131.53,131.49,0.72]
[1765573284810,8.32,131.53,131.48,5.26247507]
[1765573284811,9.04,131.53,131.5,0.72]
[1765573285020,7.60340632,131.52,131.5,0.72]
[1765573287406,9.04,131.51,131.49,13.0470912]
[1765573288129,8.32,131.51,131.49,13.7670912]
[1765573290040,15.92446811,131.51,131.49,13.7670912]
[1765573291723,16.64446811,131.51,131.49,13.0470912]
[1765573292524,40.91690439,131.51,131.47,0.72]
[1765573292836,0.72,131.5,131.47,0.72]
[1765573293012,8.32,131.49,131.47,0.72]
[1765573293715,8.32,131.49,131.48,12.86819457]
[1765573294132,8.32,131.49,131.48,13.58819457]
[1765573294538,8.32,131.49,131.48,13.87251771]
[1765573294738,8.32,131.49,131.47,7.60603624]
[1765573294942,8.32,131.49,131.47,8.32603624]
[1765573295158,8.32,131.49,131.48,0.72]
[1765573296220,8.32,131.49,131.47,0.72]
[1765573296419,8.32,131.49,131.47,8.32626651]
[1765573296826,8.32,131.49,131.47,7.60626651]
[1765573297031,8.32,131.49,131.48,0.72]
[1765573301649,8.32,131.49,131.48,8.3257195]
[1765573301857,8.32,131.55,131.51,13.0470912]
[1765573302158,9.04,131.55,131.52,3.36955276]
[1765573302452,9.04,131.55,131.51,0.72]
[1765573302649,0.72,131.54,131.51,4.08955276]
[1765573302963,0.72,131.54,131.51,0.72]
[1765573303262,17.13249068,131.54,131.51,0.72]
[1765573303637,17.13249068,131.54,131.51,21.37101595]
[1765573304466,15.92185825,131.55,131.51,24.74056871]
[1765573304661,0.72,131.54,131.51,24.74056871]
[1765573305049,15.92185825,131.55,131.52,4.08955276]
[1765573305428,16.64185825,131.55,131.52,4.08955276]
[1765573305647,16.64185825,131.55,131.52,4.0871095]
[1765573307060,8.32,131.55,131.53,0.72]
[1765573307760,8.32,131.55,131.53,4.0871095]
[1765573310665,9.04,131.55,131.53,3.3671095]
[1765573310963,9.04,131.55,131.49,3.3671095]
[1765573310964,12.89705442,131.54,131.49,3.3671095]
[1765573311141,8.32,131.53,131.49,3.3671095]
[1765573311449,8.32,131.53,131.5,13.0470912]
[1765573311450,9.04,131.53,131.5,13.0470912]
[1765573311755,9.04,131.53,131.5,24.72875618]
[1765573311967,73.83172122,131.6,131.52,3.3671095]
[1765573312131,73.83172122,131.6,131.51,13.7570912]
[1765573312132,8.80994492,131.57,131.54,3.3671095]
[1765573312331,16.6399392,131.58,131.55,3.3671095]
[1765573312569,8.32,131.58,131.56,3.3671095]
[1765573312751,8.31894152,131.6,131.57,3.3671095]
[1765573313066,8.32,131.59,131.57,4.0771095]
[1765573313758,15.91937433,131.59,131.56,7.60092482]
[1765573313949,0.72,131.58,131.56,3.3671095]
[1765573314432,9.04,131.59,131.56,11.67812922]
[1765573314625,8.32,131.59,131.57,11.67760649]
[1765573314860,8.32,131.59,131.57,4.0771095]
[1765573315061,0.72,131.58,131.55,13.0470912]
[1765573315248,0.72,131.58,131.55,16.4142007]
[1765573315447,0.72,131.58,131.55,24.72564966]
[1765573315672,24.72937968,131.59,131.56,4.0771095]
[1765573315861,25.44937968,131.59,131.56,4.0771095]
[1765573316350,25.44937968,131.59,131.56,0.71]
[1765573316673,0.72,131.58,131.55,16.4142007]
[1765573317082,0.72,131.58,131.55,17.1242007]
[1765573317661,0.72,131.58,131.55,24.7256955]
[1765573320174,25.44937968,131.59,131.56,4.0771095]
[1765573321786,9.04,131.59,131.56,11.67788278]
[1765573322278,9.04,131.59,131.57,0.71]
[1765573322279,8.32,131.59,131.57,0.71]
[1765573322581,8.32,131.59,131.56,10.96788278]
[1765573322778,0.72,131.58,131.55,16.4142007]
[1765573322958,0.72,131.58,131.55,13.0470912]
[1765573323882,8.32035582,131.58,131.55,13.7570912]
[1765573324061,8.32035582,131.58,131.55,24.01578721]
[1765573324062,7.60035582,131.58,131.55,24.01578721]
[1765573324387,16.63957025,131.59,131.56,4.0771095]
[1765573324682,16.63957025,131.59,131.56,0.71]
[1765573324864,16.63957025,131.59,131.56,4.0771095]
[1765573325585,0.72,131.58,131.56,3.3671095]
[1765573325790,16.63957025,131.59,131.56,4.0771095]
[1765573326161,16.63957025,131.59,131.56,11.67820101]
[1765573326768,16.63957025,131.59,131.56,4.0771095]
[1765573327063,0.72,131.58,131.55,24.01569079]
[1765573327276,0.72,131.58,131.55,24.72569079]
[1765573327889,8.32017465,131.58,131.55,13.0470912]
[1765573328081,8.80994492,131.57,131.53,13.0470912]
[1765573328272,8.32,131.56,131.53,13.0470912]
[1765573328590,9.04,131.56,131.53,13.7570912]
[1765573329365,9.04,131.56,131.53,0.71]
[1765573329686,8.32,131.56,131.54,0.71]
[1765573329993,9.04,131.56,131.53,11.6796015]
[1765573330293,9.04,131.56,131.53,8.312492]
[1765573331165,8.32,131.56,131.54,0.71]
[1765573331365,9.04,131.56,131.53,8.312492]
[1765573331584,16.641158,131.56,131.53,8.312492]
[1765573331782,16.641158,131.56,131.53,7.602492]
[1765573331965,15.921158,131.56,131.52,10.97051582]
[1765573332295,16.641158,131.56,131.53,0.71]
[1765573334672,4.0871095,131.55,131.51,13.33141434]
[1765573334993,8.32,131.54,131.51,14.04141434]
[1765573335188,8.32,131.54,131.51,21.64539299]
[1765573335693,8.32,131.54,131.51,20.93539299]
[1765573335993,8.32,131.54,131.52,0.71]
[1765573337167,8.32,131.54,131.52,8.31332741]
[1765573337794,8.32,131.54,131.53,0.71]
[1765573338991,16.60225026,131.54,131.51,13.0470912]
[1765573339194,19.28935976,131.54,131.51,13.0470912]
[1765573339395,16.60225026,131.54,131.51,13.7370912]
[1765573340501,15.92225026,131.54,131.51,13.0470912]
[1765573340812,16.64225026,131.54,131.51,13.7270912]
[1765573341415,34.92787592,131.54,131.51,13.0470912]
[1765573341601,34.92787592,131.54,131.49,0.68]
[1765573341602,9.52994492,131.53,131.49,0.68]
[1765573341826,12.89815679,131.53,131.49,0.68]
[1765573341987,0.72,131.52,131.49,0.68]
[1765573342188,8.32,131.51,131.49,0.68]
[1765573343009,8.32,131.51,131.49,8.56903689]
[1765573343497,8.32,131.51,131.5,0.68]
[1765573345414,8.32,131.51,131.49,0.28432314]
[1765573345581,8.32,131.51,131.49,7.88940892]
[1765573345791,8.32,131.51,131.49,8.56940892]
[1765573346101,15.9242065,131.51,131.49,0.68]
[1765573346300,15.9242065,131.51,131.45,0.1]
[1765573346301,8.80994492,131.49,131.45,0.1]
[1765573346486,11.68821187,131.48,131.45,0.1]
[1765573346686,12.17815679,131.46,131.45,0.1]
[1765573347105,12.89815679,131.46,131.45,0.1]
[1765573347501,20.5050334,131.46,131.45,0.1]
[1765573347885,8.80994492,131.45,131.39,0.1]
[1765573348090,3.36821187,131.41,131.39,0.1]
[1765573348301,8.32,131.4,131.39,0.1]
[1765573348608,8.32,131.4,131.39,0.78]
[1765573349219,0.72,131.43,131.39,0.78]
[1765573349391,8.32,131.42,131.39,11.75911683]
[1765573349883,23.10540341,131.46,131.41,13.0470912]
[1765573349884,17.13700037,131.46,131.41,13.0470912]
[1765573350089,8.32,131.45,131.41,13.0470912]
[1765573350315,8.32,131.45,131.42,0.68]
[1765573351519,8.32,131.45,131.42,8.28913159]
[1765573351721,8.32,131.45,131.42,11.65734346]
[1765573352016,8.32,131.45,131.43,0.68]
[1765573352218,17.13580482,131.48,131.44,3.36821187]
[1765573352421,8.34,131.47,131.44,3.36821187]
[1765573352596,8.34,131.47,131.44,4.04821187]
[1765573352797,16.41580482,131.48,131.44,4.04821187]
[1765573353102,8.34,131.47,131.44,4.04821187]
[1765573353309,16.66637583,131.47,131.44,4.04821187]
[1765573353505,16.66637583,131.47,131.43,3.36821187]
[1765573353734,16.66637583,131.47,131.43,4.04821187]
[1765573353735,34.96212086,131.47,131.43,4.04821187]
[1765573353932,0.72,131.46,131.43,4.04821187]
[1765573354415,0.72,131.46,131.43,3.36821187]
[1765573355121,0.72,131.46,131.43,4.04821187]
[1765573355521,8.32694225,131.46,131.43,4.04821187]
[1765573356025,8.34,131.45,131.43,4.04821187]
[1765573357215,8.34,131.45,131.43,0.68]
[1765573357416,8.34,131.45,131.43,4.04821187]
[1765573357736,8.34,131.45,131.43,11.65664991]
[1765573357912,8.80994492,131.48,131.44,4.04821187]
[1765573358110,8.34,131.47,131.45,3.36821187]
[1765573358417,8.34,131.46,131.45,4.04821187]
[1765573358620,8.34,131.46,131.45,3.36821187]
[1765573360035,8.34,131.46,131.45,5.26685324]
[1765573360200,15.94687661,131.46,131.45,5.26685324]
[1765573360401,16.66687661,131.46,131.43,5.55117638]
[1765573360630,0.72,131.45,131.42,18.99394444]
[1765573360840,0.72,131.45,131.39,32.71350141]
[1765573360841,7.60803408,131.44,131.39,0.1]
[1765573361006,8.34,131.43,131.4,5.94685324]
[1765573361215,8.34,131.43,131.4,18.99394444]
[1765573361430,8.34,131.43,131.4,26.60419027]
[1765573361634,8.34,131.43,131.41,5.26685324]
[1765573362334,8.34,131.43,131.4,26.60419027]
[1765573363216,0.72,131.42,131.4,13.0470912]
[1765573363410,14.07679816,131.41,131.39,0.1]
[1765573363606,14.07679816,131.41,131.32,6.04685324]
[1765573363607,22.41679816,131.4,131.32,6.04685324]
[1765573363828,5.26685324,131.38,131.32,6.04685324]
[1765573364133,8.34,131.37,131.32,18.41394444]
[1765573364323,8.34,131.37,131.33,5.94685324]
[1765573364527,9.06,131.37,131.33,5.94685324]
[1765573364722,8.33276013,131.36,131.32,26.02882904]
[1765573365029,8.33276013,131.36,131.32,0.1]
[1765573365205,0.72,131.35,131.32,0.1]
[1765573365408,8.34,131.34,131.32,0.1]
[1765573365827,0.72,131.33,131.32,0.1]
[1765573366224,8.34,131.34,131.32,0.1]
[1765573366425,8.34,131.34,131.32,0.78]
[1765573366934,8.34,131.34,131.33,5.26685324]
[1765573367232,8.34,131.34,131.32,0.78]
[1765573367423,8.34,131.34,131.33,5.26685324]
[1765573368444,8.34,131.34,131.33,5.94685324]
[1765573368946,8.80994492,131.37,131.33,5.94685324]
[1765573369140,8.34,131.36,131.34,5.26685324]
[1765573369515,0.72,131.35,131.33,5.26685324]
[1765573370739,8.34,131.36,131.34,5.26685324]
[1765573370923,8.34,131.36,131.35,5.26685324]
[1765573371238,8.34,131.38,131.35,5.96685324]